{"text_format":"3","workbook":"xlsx","n_sheets":4,"sheets":["PASĀKUMI","KALENDĀRS","DRUKAS VERSIJA","ADMINISTRATORS"],"not_rendered":{"defined_names":18},"read":"whole","date_system":"1900"}

{"sheet":"PASĀKUMI","index":0,"n_rows":38,"n_cols":5,"rows_kept":38}
[]
[null,"IKMĒNEŠA KOPIENA"]
[null,"PASĀKUMA PLĀNOTĀJS"]
[]
[]
[]
[]
[null,"DATUMS","DIENA","MĒNESIS","PASĀKUMA NOSAUKUMS"]
[null,"2016-07-01",{"$f":"IF(ISBLANK(tblPasākumi[[#This Row],[DATUMS]]),\"\",UPPER(TEXT(tblPasākumi[[#This Row],[DATUMS]],\"ddd\")))","v":"PK"},{"$f":"IF(ISBLANK(tblPasākumi[[#This Row],[DATUMS]]),\"\",UPPER(TEXT(tblPasākumi[[#This Row],[DATUMS]],\"mmm\")))","v":"JŪL"},"Kopienas dārzs"]
[null,"2016-07-01",{"$f":"IF(ISBLANK(tblPasākumi[[#This Row],[DATUMS]]),\"\",UPPER(TEXT(tblPasākumi[[#This Row],[DATUMS]],\"ddd\")))","v":"PK"},{"$f":"IF(ISBLANK(tblPasākumi[[#This Row],[DATUMS]]),\"\",UPPER(TEXT(tblPasākumi[[#This Row],[DATUMS]],\"mmm\")))","v":"JŪL"},"Pilsētas dome"]
[null,"2016-07-02",{"$f":"IF(ISBLANK(tblPasākumi[[#This Row],[DATUMS]]),\"\",UPPER(TEXT(tblPasākumi[[#This Row],[DATUMS]],\"ddd\")))","v":"SE"},{"$f":"IF(ISBLANK(tblPasākumi[[#This Row],[DATUMS]]),\"\",UPPER(TEXT(tblPasākumi[[#This Row],[DATUMS]],\"mmm\")))","v":"JŪL"},"Kopienas dārzs"]
[null,"2016-07-03",{"$f":"IF(ISBLANK(tblPasākumi[[#This Row],[DATUMS]]),\"\",UPPER(TEXT(tblPasākumi[[#This Row],[DATUMS]],\"ddd\")))","v":"SV"},{"$f":"IF(ISBLANK(tblPasākumi[[#This Row],[DATUMS]]),\"\",UPPER(TEXT(tblPasākumi[[#This Row],[DATUMS]],\"mmm\")))","v":"JŪL"},"Filmu vakars parkā"]
[null,"2016-07-08",{"$f":"IF(ISBLANK(tblPasākumi[[#This Row],[DATUMS]]),\"\",UPPER(TEXT(tblPasākumi[[#This Row],[DATUMS]],\"ddd\")))","v":"PK"},{"$f":"IF(ISBLANK(tblPasākumi[[#This Row],[DATUMS]]),\"\",UPPER(TEXT(tblPasākumi[[#This Row],[DATUMS]],\"mmm\")))","v":"JŪL"},"Pilsētas dome"]
[null,"2016-07-11",{"$f":"IF(ISBLANK(tblPasākumi[[#This Row],[DATUMS]]),\"\",UPPER(TEXT(tblPasākumi[[#This Row],[DATUMS]],\"ddd\")))","v":"PR"},{"$f":"IF(ISBLANK(tblPasākumi[[#This Row],[DATUMS]]),\"\",UPPER(TEXT(tblPasākumi[[#This Row],[DATUMS]],\"mmm\")))","v":"JŪL"},"Tirdzniecības kamera Brokastis"]
[null,"2016-07-12",{"$f":"IF(ISBLANK(tblPasākumi[[#This Row],[DATUMS]]),\"\",UPPER(TEXT(tblPasākumi[[#This Row],[DATUMS]],\"ddd\")))","v":"OT"},{"$f":"IF(ISBLANK(tblPasākumi[[#This Row],[DATUMS]]),\"\",UPPER(TEXT(tblPasākumi[[#This Row],[DATUMS]],\"mmm\")))","v":"JŪL"},"Senlietu izstāde"]
[null,"2016-07-14",{"$f":"IF(ISBLANK(tblPasākumi[[#This Row],[DATUMS]]),\"\",UPPER(TEXT(tblPasākumi[[#This Row],[DATUMS]],\"ddd\")))","v":"CE"},{"$f":"IF(ISBLANK(tblPasākumi[[#This Row],[DATUMS]]),\"\",UPPER(TEXT(tblPasākumi[[#This Row],[DATUMS]],\"mmm\")))","v":"JŪL"},"Kopienas darbnīca"]
[null,"2016-07-15",{"$f":"IF(ISBLANK(tblPasākumi[[#This Row],[DATUMS]]),\"\",UPPER(TEXT(tblPasākumi[[#This Row],[DATUMS]],\"ddd\")))","v":"PK"},{"$f":"IF(ISBLANK(tblPasākumi[[#This Row],[DATUMS]]),\"\",UPPER(TEXT(tblPasākumi[[#This Row],[DATUMS]],\"mmm\")))","v":"JŪL"},"Pilsētas dome"]
[null,"2016-07-19",{"$f":"IF(ISBLANK(tblPasākumi[[#This Row],[DATUMS]]),\"\",UPPER(TEXT(tblPasākumi[[#This Row],[DATUMS]],\"ddd\")))","v":"OT"},{"$f":"IF(ISBLANK(tblPasākumi[[#This Row],[DATUMS]]),\"\",UPPER(TEXT(tblPasākumi[[#This Row],[DATUMS]],\"mmm\")))","v":"JŪL"},"Stratēģiskās plānošanas seminārs"]
[null,"2016-07-20",{"$f":"IF(ISBLANK(tblPasākumi[[#This Row],[DATUMS]]),\"\",UPPER(TEXT(tblPasākumi[[#This Row],[DATUMS]],\"ddd\")))","v":"TR"},{"$f":"IF(ISBLANK(tblPasākumi[[#This Row],[DATUMS]]),\"\",UPPER(TEXT(tblPasākumi[[#This Row],[DATUMS]],\"mmm\")))","v":"JŪL"},"Parka tīrīšana"]
[null,"2016-07-22",{"$f":"IF(ISBLANK(tblPasākumi[[#This Row],[DATUMS]]),\"\",UPPER(TEXT(tblPasākumi[[#This Row],[DATUMS]],\"ddd\")))","v":"PK"},{"$f":"IF(ISBLANK(tblPasākumi[[#This Row],[DATUMS]]),\"\",UPPER(TEXT(tblPasākumi[[#This Row],[DATUMS]],\"mmm\")))","v":"JŪL"},"Pilsētas dome"]
[null,"2016-07-26",{"$f":"IF(ISBLANK(tblPasākumi[[#This Row],[DATUMS]]),\"\",UPPER(TEXT(tblPasākumi[[#This Row],[DATUMS]],\"ddd\")))","v":"OT"},{"$f":"IF(ISBLANK(tblPasākumi[[#This Row],[DATUMS]]),\"\",UPPER(TEXT(tblPasākumi[[#This Row],[DATUMS]],\"mmm\")))","v":"JŪL"},"Centra pastaigu ekskursija"]
[null,"2016-07-26",{"$f":"IF(ISBLANK(tblPasākumi[[#This Row],[DATUMS]]),\"\",UPPER(TEXT(tblPasākumi[[#This Row],[DATUMS]],\"ddd\")))","v":"OT"},{"$f":"IF(ISBLANK(tblPasākumi[[#This Row],[DATUMS]]),\"\",UPPER(TEXT(tblPasākumi[[#This Row],[DATUMS]],\"mmm\")))","v":"JŪL"},"Krogu apgaita"]
[null,"2016-07-29",{"$f":"IF(ISBLANK(tblPasākumi[[#This Row],[DATUMS]]),\"\",UPPER(TEXT(tblPasākumi[[#This Row],[DATUMS]],\"ddd\")))","v":"PK"},{"$f":"IF(ISBLANK(tblPasākumi[[#This Row],[DATUMS]]),\"\",UPPER(TEXT(tblPasākumi[[#This Row],[DATUMS]],\"mmm\")))","v":"JŪL"},"Pilsētas dome"]
[null,"2016-08-05",{"$f":"IF(ISBLANK(tblPasākumi[[#This Row],[DATUMS]]),\"\",UPPER(TEXT(tblPasākumi[[#This Row],[DATUMS]],\"ddd\")))","v":"PK"},{"$f":"IF(ISBLANK(tblPasākumi[[#This Row],[DATUMS]]),\"\",UPPER(TEXT(tblPasākumi[[#This Row],[DATUMS]],\"mmm\")))","v":"AUG"},"Pilsētas dome"]
[null,"2016-08-10",{"$f":"IF(ISBLANK(tblPasākumi[[#This Row],[DATUMS]]),\"\",UPPER(TEXT(tblPasākumi[[#This Row],[DATUMS]],\"ddd\")))","v":"TR"},{"$f":"IF(ISBLANK(tblPasākumi[[#This Row],[DATUMS]]),\"\",UPPER(TEXT(tblPasākumi[[#This Row],[DATUMS]],\"mmm\")))","v":"AUG"},"Parka tīrīšana"]
[null,"2016-08-12",{"$f":"IF(ISBLANK(tblPasākumi[[#This Row],[DATUMS]]),\"\",UPPER(TEXT(tblPasākumi[[#This Row],[DATUMS]],\"ddd\")))","v":"PK"},{"$f":"IF(ISBLANK(tblPasākumi[[#This Row],[DATUMS]]),\"\",UPPER(TEXT(tblPasākumi[[#This Row],[DATUMS]],\"mmm\")))","v":"AUG"},"Pilsētas dome"]
[null,"2016-08-13",{"$f":"IF(ISBLANK(tblPasākumi[[#This Row],[DATUMS]]),\"\",UPPER(TEXT(tblPasākumi[[#This Row],[DATUMS]],\"ddd\")))","v":"SE"},{"$f":"IF(ISBLANK(tblPasākumi[[#This Row],[DATUMS]]),\"\",UPPER(TEXT(tblPasākumi[[#This Row],[DATUMS]],\"mmm\")))","v":"AUG"},"Kopienas dārzs"]
[null,"2016-09-01",{"$f":"IF(ISBLANK(tblPasākumi[[#This Row],[DATUMS]]),\"\",UPPER(TEXT(tblPasākumi[[#This Row],[DATUMS]],\"ddd\")))","v":"CE"},{"$f":"IF(ISBLANK(tblPasākumi[[#This Row],[DATUMS]]),\"\",UPPER(TEXT(tblPasākumi[[#This Row],[DATUMS]],\"mmm\")))","v":"SEP"},"Budžeta komiteja"]
[null,"2016-10-01",{"$f":"IF(ISBLANK(tblPasākumi[[#This Row],[DATUMS]]),\"\",UPPER(TEXT(tblPasākumi[[#This Row],[DATUMS]],\"ddd\")))","v":"SE"},{"$f":"IF(ISBLANK(tblPasākumi[[#This Row],[DATUMS]]),\"\",UPPER(TEXT(tblPasākumi[[#This Row],[DATUMS]],\"mmm\")))","v":"OKT"},"Budžeta komiteja"]
[null,"2016-11-03",{"$f":"IF(ISBLANK(tblPasākumi[[#This Row],[DATUMS]]),\"\",UPPER(TEXT(tblPasākumi[[#This Row],[DATUMS]],\"ddd\")))","v":"CE"},{"$f":"IF(ISBLANK(tblPasākumi[[#This Row],[DATUMS]]),\"\",UPPER(TEXT(tblPasākumi[[#This Row],[DATUMS]],\"mmm\")))","v":"NOV"},"Budžeta komiteja"]
[null,"2016-12-01",{"$f":"IF(ISBLANK(tblPasākumi[[#This Row],[DATUMS]]),\"\",UPPER(TEXT(tblPasākumi[[#This Row],[DATUMS]],\"ddd\")))","v":"CE"},{"$f":"IF(ISBLANK(tblPasākumi[[#This Row],[DATUMS]]),\"\",UPPER(TEXT(tblPasākumi[[#This Row],[DATUMS]],\"mmm\")))","v":"DEC"},"Budžeta komiteja"]
[null,"2017-01-01",{"$f":"IF(ISBLANK(tblPasākumi[[#This Row],[DATUMS]]),\"\",UPPER(TEXT(tblPasākumi[[#This Row],[DATUMS]],\"ddd\")))","v":"SV"},{"$f":"IF(ISBLANK(tblPasākumi[[#This Row],[DATUMS]]),\"\",UPPER(TEXT(tblPasākumi[[#This Row],[DATUMS]],\"mmm\")))","v":"JAN"},"Budžeta komiteja"]
[null,"2017-02-02",{"$f":"IF(ISBLANK(tblPasākumi[[#This Row],[DATUMS]]),\"\",UPPER(TEXT(tblPasākumi[[#This Row],[DATUMS]],\"ddd\")))","v":"CE"},{"$f":"IF(ISBLANK(tblPasākumi[[#This Row],[DATUMS]]),\"\",UPPER(TEXT(tblPasākumi[[#This Row],[DATUMS]],\"mmm\")))","v":"FEB"},"Budžeta komiteja"]
[null,"2017-03-02",{"$f":"IF(ISBLANK(tblPasākumi[[#This Row],[DATUMS]]),\"\",UPPER(TEXT(tblPasākumi[[#This Row],[DATUMS]],\"ddd\")))","v":"CE"},{"$f":"IF(ISBLANK(tblPasākumi[[#This Row],[DATUMS]]),\"\",UPPER(TEXT(tblPasākumi[[#This Row],[DATUMS]],\"mmm\")))","v":"MAR"},"Budžeta komiteja"]
[null,"2017-04-01",{"$f":"IF(ISBLANK(tblPasākumi[[#This Row],[DATUMS]]),\"\",UPPER(TEXT(tblPasākumi[[#This Row],[DATUMS]],\"ddd\")))","v":"SE"},{"$f":"IF(ISBLANK(tblPasākumi[[#This Row],[DATUMS]]),\"\",UPPER(TEXT(tblPasākumi[[#This Row],[DATUMS]],\"mmm\")))","v":"APR"},"Budžeta komiteja"]
[null,"2017-05-01",{"$f":"IF(ISBLANK(tblPasākumi[[#This Row],[DATUMS]]),\"\",UPPER(TEXT(tblPasākumi[[#This Row],[DATUMS]],\"ddd\")))","v":"PR"},{"$f":"IF(ISBLANK(tblPasākumi[[#This Row],[DATUMS]]),\"\",UPPER(TEXT(tblPasākumi[[#This Row],[DATUMS]],\"mmm\")))","v":"MAI"},"Budžeta komiteja"]
[null,"2017-06-01",{"$f":"IF(ISBLANK(tblPasākumi[[#This Row],[DATUMS]]),\"\",UPPER(TEXT(tblPasākumi[[#This Row],[DATUMS]],\"ddd\")))","v":"CE"},{"$f":"IF(ISBLANK(tblPasākumi[[#This Row],[DATUMS]]),\"\",UPPER(TEXT(tblPasākumi[[#This Row],[DATUMS]],\"mmm\")))","v":"JŪN"},"Budžeta komiteja"]
[null,"2017-06-02",{"$f":"IF(ISBLANK(tblPasākumi[[#This Row],[DATUMS]]),\"\",UPPER(TEXT(tblPasākumi[[#This Row],[DATUMS]],\"ddd\")))","v":"PK"},{"$f":"IF(ISBLANK(tblPasākumi[[#This Row],[DATUMS]]),\"\",UPPER(TEXT(tblPasākumi[[#This Row],[DATUMS]],\"mmm\")))","v":"JŪN"},"Pilsētas dome"]

{"sheet":"KALENDĀRS","index":1,"n_rows":35,"n_cols":21,"rows_kept":35,"merged":[[1,5,1,11],[30,8,34,20]]}
[]
[null,null,2016,null,null,{"$f":"LOOKUP(MēnešaNr,tblMēneši[NUMURS],tblMēneši[MĒNESIS])","v":"JŪLIJS"}]
[null,null,7,null,null,{"$f":"DATE(SkatītGadu,MēnešaNr,1)","v":"2016-07-01"},null,null,{"$f":"WEEKDAY(SākumaDatums)","v":6}]
[null,null,"PR",null,null,"OT",null,null,"TR",null,null,"CE",null,null,"PK",null,null,"SE",null,null,"SV"]
[]
[null,null,{"$f":"SākumaDatums-(WEEKDAY(SākumaDatums)-2)+{0;1;2;3;4;5}*7 +{1,2,3,4,5,6,7}-3+COLUMN(B1)","v":"2016-06-27"},null,null,{"$f":"SākumaDatums-(WEEKDAY(SākumaDatums)-2)+{0;1;2;3;4;5}*7 +{1,2,3,4,5,6,7}-3+COLUMN(C1)","v":"2016-06-28"},null,null,{"$f":"SākumaDatums-(WEEKDAY(SākumaDatums)-2)+{0;1;2;3;4;5}*7 +{1,2,3,4,5,6,7}-3+COLUMN(D1)","v":"2016-06-29"},null,null,{"$f":"SākumaDatums-(WEEKDAY(SākumaDatums)-2)+{0;1;2;3;4;5}*7 +{1,2,3,4,5,6,7}-3+COLUMN(E1)","v":"2016-06-30"},null,null,{"$f":"SākumaDatums-(WEEKDAY(SākumaDatums)-2)+{0;1;2;3;4;5}*7 +{1,2,3,4,5,6,7}-3+COLUMN(F1)","v":"2016-07-01"},null,null,{"$f":"SākumaDatums-(WEEKDAY(SākumaDatums)-2)+{0;1;2;3;4;5}*7 +{1,2,3,4,5,6,7}-3+COLUMN(G1)","v":"2016-07-02"},null,null,{"$f":"SākumaDatums-(WEEKDAY(SākumaDatums)-2)+{0;1;2;3;4;5}*7 +{1,2,3,4,5,6,7}-3+COLUMN(H1)","v":"2016-07-03"}]
[null,null,{"$f":"IFERROR(INDEX(tblPasākumi[],SMALL(IF(Datumi=C$6,ROW(Datumi)),ROW(1:1))-TabulasRindasSākums,4),\"\")","v":""},null,null,{"$f":"IFERROR(INDEX(tblPasākumi[],SMALL(IF(Datumi=F$6,ROW(Datumi)),ROW(1:1))-TabulasRindasSākums,4),\"\")","v":""},null,null,{"$f":"IFERROR(INDEX(tblPasākumi[],SMALL(IF(Datumi=I$6,ROW(Datumi)),ROW(1:1))-TabulasRindasSākums,4),\"\")","v":""},null,null,{"$f":"IFERROR(INDEX(tblPasākumi[],SMALL(IF(Datumi=L$6,ROW(Datumi)),ROW(1:1))-TabulasRindasSākums,4),\"\")","v":""},null,null,{"$f":"IFERROR(INDEX(tblPasākumi[],SMALL(IF(Datumi=O$6,ROW(Datumi)),ROW(1:1))-TabulasRindasSākums,4),\"\")","v":"Kopienas dārzs"},null,null,{"$f":"IFERROR(INDEX(tblPasākumi[],SMALL(IF(Datumi=R$6,ROW(Datumi)),ROW(1:1))-TabulasRindasSākums,4),\"\")","v":"Kopienas dārzs"},null,null,{"$f":"IFERROR(INDEX(tblPasākumi[],SMALL(IF(Datumi=U$6,ROW(Datumi)),ROW(1:1))-TabulasRindasSākums,4),\"\")","v":"Filmu vakars parkā"}]
[null,null,{"$f":"IFERROR(INDEX(tblPasākumi[],SMALL(IF(Datumi=C$6,ROW(Datumi)),ROW(2:2))-TabulasRindasSākums,4),\"\")","v":""},null,null,{"$f":"IFERROR(INDEX(tblPasākumi[],SMALL(IF(Datumi=F$6,ROW(Datumi)),ROW(2:2))-TabulasRindasSākums,4),\"\")","v":""},null,null,{"$f":"IFERROR(INDEX(tblPasākumi[],SMALL(IF(Datumi=I$6,ROW(Datumi)),ROW(2:2))-TabulasRindasSākums,4),\"\")","v":""},null,null,{"$f":"IFERROR(INDEX(tblPasākumi[],SMALL(IF(Datumi=L$6,ROW(Datumi)),ROW(2:2))-TabulasRindasSākums,4),\"\")","v":""},null,null,{"$f":"IFERROR(INDEX(tblPasākumi[],SMALL(IF(Datumi=O$6,ROW(Datumi)),ROW(2:2))-TabulasRindasSākums,4),\"\")","v":"Pilsētas dome"},null,null,{"$f":"IFERROR(INDEX(tblPasākumi[],SMALL(IF(Datumi=R$6,ROW(Datumi)),ROW(2:2))-TabulasRindasSākums,4),\"\")","v":""},null,null,{"$f":"IFERROR(INDEX(tblPasākumi[],SMALL(IF(Datumi=U$6,ROW(Datumi)),ROW(2:2))-TabulasRindasSākums,4),\"\")","v":""}]
[null,null,{"$f":"IFERROR(INDEX(tblPasākumi[],SMALL(IF(Datumi=C$6,ROW(Datumi)),ROW(3:3))-TabulasRindasSākums,4),\"\")","v":""},null,null,{"$f":"IFERROR(INDEX(tblPasākumi[],SMALL(IF(Datumi=F$6,ROW(Datumi)),ROW(3:3))-TabulasRindasSākums,4),\"\")","v":""},null,null,{"$f":"IFERROR(INDEX(tblPasākumi[],SMALL(IF(Datumi=I$6,ROW(Datumi)),ROW(3:3))-TabulasRindasSākums,4),\"\")","v":""},null,null,{"$f":"IFERROR(INDEX(tblPasākumi[],SMALL(IF(Datumi=L$6,ROW(Datumi)),ROW(3:3))-TabulasRindasSākums,4),\"\")","v":""},null,null,{"$f":"IFERROR(INDEX(tblPasākumi[],SMALL(IF(Datumi=O$6,ROW(Datumi)),ROW(3:3))-TabulasRindasSākums,4),\"\")","v":""},null,null,{"$f":"IFERROR(INDEX(tblPasākumi[],SMALL(IF(Datumi=R$6,ROW(Datumi)),ROW(3:3))-TabulasRindasSākums,4),\"\")","v":""},null,null,{"$f":"IFERROR(INDEX(tblPasākumi[],SMALL(IF(Datumi=U$6,ROW(Datumi)),ROW(3:3))-TabulasRindasSākums,4),\"\")","v":""}]
[null,null,{"$f":"IFERROR(INDEX(tblPasākumi[],SMALL(IF(Datumi=C$6,ROW(Datumi)),ROW(4:4))-TabulasRindasSākums,4),\"\")","v":""},null,null,{"$f":"IFERROR(INDEX(tblPasākumi[],SMALL(IF(Datumi=F$6,ROW(Datumi)),ROW(4:4))-TabulasRindasSākums,4),\"\")","v":""},null,null,{"$f":"IFERROR(INDEX(tblPasākumi[],SMALL(IF(Datumi=I$6,ROW(Datumi)),ROW(4:4))-TabulasRindasSākums,4),\"\")","v":""},null,null,{"$f":"IFERROR(INDEX(tblPasākumi[],SMALL(IF(Datumi=L$6,ROW(Datumi)),ROW(4:4))-TabulasRindasSākums,4),\"\")","v":""},null,null,{"$f":"IFERROR(INDEX(tblPasākumi[],SMALL(IF(Datumi=O$6,ROW(Datumi)),ROW(4:4))-TabulasRindasSākums,4),\"\")","v":""},null,null,{"$f":"IFERROR(INDEX(tblPasākumi[],SMALL(IF(Datumi=R$6,ROW(Datumi)),ROW(4:4))-TabulasRindasSākums,4),\"\")","v":""},null,null,{"$f":"IFERROR(INDEX(tblPasākumi[],SMALL(IF(Datumi=U$6,ROW(Datumi)),ROW(4:4))-TabulasRindasSākums,4),\"\")","v":""}]
[null,null,{"$f":"U6+1","v":"2016-07-04"},null,null,{"$f":"C11+1","v":"2016-07-05"},null,null,{"$f":"F11+1","v":"2016-07-06"},null,null,{"$f":"I11+1","v":"2016-07-07"},null,null,{"$f":"L11+1","v":"2016-07-08"},null,null,{"$f":"O11+1","v":"2016-07-09"},null,null,{"$f":"R11+1","v":"2016-07-10"}]
[null,null,{"$f":"IFERROR(INDEX(tblPasākumi[],SMALL(IF(Datumi=C$11,ROW(Datumi)),ROW(1:1))-TabulasRindasSākums,4),\"\")","v":""},null,null,{"$f":"IFERROR(INDEX(tblPasākumi[],SMALL(IF(Datumi=F$11,ROW(Datumi)),ROW(1:1))-TabulasRindasSākums,4),\"\")","v":""},null,null,{"$f":"IFERROR(INDEX(tblPasākumi[],SMALL(IF(Datumi=I$11,ROW(Datumi)),ROW(1:1))-TabulasRindasSākums,4),\"\")","v":""},null,null,{"$f":"IFERROR(INDEX(tblPasākumi[],SMALL(IF(Datumi=L$11,ROW(Datumi)),ROW(1:1))-TabulasRindasSākums,4),\"\")","v":""},null,null,{"$f":"IFERROR(INDEX(tblPasākumi[],SMALL(IF(Datumi=O$11,ROW(Datumi)),ROW(1:1))-TabulasRindasSākums,4),\"\")","v":"Pilsētas dome"},null,null,{"$f":"IFERROR(INDEX(tblPasākumi[],SMALL(IF(Datumi=R$11,ROW(Datumi)),ROW(1:1))-TabulasRindasSākums,4),\"\")","v":""},null,null,{"$f":"IFERROR(INDEX(tblPasākumi[],SMALL(IF(Datumi=U$11,ROW(Datumi)),ROW(1:1))-TabulasRindasSākums,4),\"\")","v":""}]
[null,null,{"$f":"IFERROR(INDEX(tblPasākumi[],SMALL(IF(Datumi=C$11,ROW(Datumi)),ROW(2:2))-TabulasRindasSākums,4),\"\")","v":""},null,null,{"$f":"IFERROR(INDEX(tblPasākumi[],SMALL(IF(Datumi=F$11,ROW(Datumi)),ROW(2:2))-TabulasRindasSākums,4),\"\")","v":""},null,null,{"$f":"IFERROR(INDEX(tblPasākumi[],SMALL(IF(Datumi=I$11,ROW(Datumi)),ROW(2:2))-TabulasRindasSākums,4),\"\")","v":""},null,null,{"$f":"IFERROR(INDEX(tblPasākumi[],SMALL(IF(Datumi=L$11,ROW(Datumi)),ROW(2:2))-TabulasRindasSākums,4),\"\")","v":""},null,null,{"$f":"IFERROR(INDEX(tblPasākumi[],SMALL(IF(Datumi=O$11,ROW(Datumi)),ROW(2:2))-TabulasRindasSākums,4),\"\")","v":""},null,null,{"$f":"IFERROR(INDEX(tblPasākumi[],SMALL(IF(Datumi=R$11,ROW(Datumi)),ROW(2:2))-TabulasRindasSākums,4),\"\")","v":""},null,null,{"$f":"IFERROR(INDEX(tblPasākumi[],SMALL(IF(Datumi=U$11,ROW(Datumi)),ROW(2:2))-TabulasRindasSākums,4),\"\")","v":""}]
[null,null,{"$f":"IFERROR(INDEX(tblPasākumi[],SMALL(IF(Datumi=C$11,ROW(Datumi)),ROW(3:3))-TabulasRindasSākums,4),\"\")","v":""},null,null,{"$f":"IFERROR(INDEX(tblPasākumi[],SMALL(IF(Datumi=F$11,ROW(Datumi)),ROW(3:3))-TabulasRindasSākums,4),\"\")","v":""},null,null,{"$f":"IFERROR(INDEX(tblPasākumi[],SMALL(IF(Datumi=I$11,ROW(Datumi)),ROW(3:3))-TabulasRindasSākums,4),\"\")","v":""},null,null,{"$f":"IFERROR(INDEX(tblPasākumi[],SMALL(IF(Datumi=L$11,ROW(Datumi)),ROW(3:3))-TabulasRindasSākums,4),\"\")","v":""},null,null,{"$f":"IFERROR(INDEX(tblPasākumi[],SMALL(IF(Datumi=O$11,ROW(Datumi)),ROW(3:3))-TabulasRindasSākums,4),\"\")","v":""},null,null,{"$f":"IFERROR(INDEX(tblPasākumi[],SMALL(IF(Datumi=R$11,ROW(Datumi)),ROW(3:3))-TabulasRindasSākums,4),\"\")","v":""},null,null,{"$f":"IFERROR(INDEX(tblPasākumi[],SMALL(IF(Datumi=U$11,ROW(Datumi)),ROW(3:3))-TabulasRindasSākums,4),\"\")","v":""}]
[null,null,{"$f":"IFERROR(INDEX(tblPasākumi[],SMALL(IF(Datumi=C$11,ROW(Datumi)),ROW(4:4))-TabulasRindasSākums,4),\"\")","v":""},null,null,{"$f":"IFERROR(INDEX(tblPasākumi[],SMALL(IF(Datumi=F$11,ROW(Datumi)),ROW(4:4))-TabulasRindasSākums,4),\"\")","v":""},null,null,{"$f":"IFERROR(INDEX(tblPasākumi[],SMALL(IF(Datumi=I$11,ROW(Datumi)),ROW(4:4))-TabulasRindasSākums,4),\"\")","v":""},null,null,{"$f":"IFERROR(INDEX(tblPasākumi[],SMALL(IF(Datumi=L$11,ROW(Datumi)),ROW(4:4))-TabulasRindasSākums,4),\"\")","v":""},null,null,{"$f":"IFERROR(INDEX(tblPasākumi[],SMALL(IF(Datumi=O$11,ROW(Datumi)),ROW(4:4))-TabulasRindasSākums,4),\"\")","v":""},null,null,{"$f":"IFERROR(INDEX(tblPasākumi[],SMALL(IF(Datumi=R$11,ROW(Datumi)),ROW(4:4))-TabulasRindasSākums,4),\"\")","v":""},null,null,{"$f":"IFERROR(INDEX(tblPasākumi[],SMALL(IF(Datumi=U$11,ROW(Datumi)),ROW(4:4))-TabulasRindasSākums,4),\"\")","v":""}]
[null,null,{"$f":"U11+1","v":"2016-07-11"},null,null,{"$f":"C16+1","v":"2016-07-12"},null,null,{"$f":"F16+1","v":"2016-07-13"},null,null,{"$f":"I16+1","v":"2016-07-14"},null,null,{"$f":"L16+1","v":"2016-07-15"},null,null,{"$f":"O16+1","v":"2016-07-16"},null,null,{"$f":"R16+1","v":"2016-07-17"}]
[null,null,{"$f":"IFERROR(INDEX(tblPasākumi[],SMALL(IF(Datumi=C$16,ROW(Datumi)),ROW(1:1))-TabulasRindasSākums,4),\"\")","v":"Tirdzniecības kamera Brokastis"},null,null,{"$f":"IFERROR(INDEX(tblPasākumi[],SMALL(IF(Datumi=F$16,ROW(Datumi)),ROW(1:1))-TabulasRindasSākums,4),\"\")","v":"Senlietu izstāde"},null,null,{"$f":"IFERROR(INDEX(tblPasākumi[],SMALL(IF(Datumi=I$16,ROW(Datumi)),ROW(1:1))-TabulasRindasSākums,4),\"\")","v":""},null,null,{"$f":"IFERROR(INDEX(tblPasākumi[],SMALL(IF(Datumi=L$16,ROW(Datumi)),ROW(1:1))-TabulasRindasSākums,4),\"\")","v":"Kopienas darbnīca"},null,null,{"$f":"IFERROR(INDEX(tblPasākumi[],SMALL(IF(Datumi=O$16,ROW(Datumi)),ROW(1:1))-TabulasRindasSākums,4),\"\")","v":"Pilsētas dome"},null,null,{"$f":"IFERROR(INDEX(tblPasākumi[],SMALL(IF(Datumi=R$16,ROW(Datumi)),ROW(1:1))-TabulasRindasSākums,4),\"\")","v":""},null,null,{"$f":"IFERROR(INDEX(tblPasākumi[],SMALL(IF(Datumi=U$16,ROW(Datumi)),ROW(1:1))-TabulasRindasSākums,4),\"\")","v":""}]
[null,null,{"$f":"IFERROR(INDEX(tblPasākumi[],SMALL(IF(Datumi=C$16,ROW(Datumi)),ROW(2:2))-TabulasRindasSākums,4),\"\")","v":""},null,null,{"$f":"IFERROR(INDEX(tblPasākumi[],SMALL(IF(Datumi=F$16,ROW(Datumi)),ROW(2:2))-TabulasRindasSākums,4),\"\")","v":""},null,null,{"$f":"IFERROR(INDEX(tblPasākumi[],SMALL(IF(Datumi=I$16,ROW(Datumi)),ROW(2:2))-TabulasRindasSākums,4),\"\")","v":""},null,null,{"$f":"IFERROR(INDEX(tblPasākumi[],SMALL(IF(Datumi=L$16,ROW(Datumi)),ROW(2:2))-TabulasRindasSākums,4),\"\")","v":""},null,null,{"$f":"IFERROR(INDEX(tblPasākumi[],SMALL(IF(Datumi=O$16,ROW(Datumi)),ROW(2:2))-TabulasRindasSākums,4),\"\")","v":""},null,null,{"$f":"IFERROR(INDEX(tblPasākumi[],SMALL(IF(Datumi=R$16,ROW(Datumi)),ROW(2:2))-TabulasRindasSākums,4),\"\")","v":""},null,null,{"$f":"IFERROR(INDEX(tblPasākumi[],SMALL(IF(Datumi=U$16,ROW(Datumi)),ROW(2:2))-TabulasRindasSākums,4),\"\")","v":""}]
[null,null,{"$f":"IFERROR(INDEX(tblPasākumi[],SMALL(IF(Datumi=C$16,ROW(Datumi)),ROW(3:3))-TabulasRindasSākums,4),\"\")","v":""},null,null,{"$f":"IFERROR(INDEX(tblPasākumi[],SMALL(IF(Datumi=F$16,ROW(Datumi)),ROW(3:3))-TabulasRindasSākums,4),\"\")","v":""},null,null,{"$f":"IFERROR(INDEX(tblPasākumi[],SMALL(IF(Datumi=I$16,ROW(Datumi)),ROW(3:3))-TabulasRindasSākums,4),\"\")","v":""},null,null,{"$f":"IFERROR(INDEX(tblPasākumi[],SMALL(IF(Datumi=L$16,ROW(Datumi)),ROW(3:3))-TabulasRindasSākums,4),\"\")","v":""},null,null,{"$f":"IFERROR(INDEX(tblPasākumi[],SMALL(IF(Datumi=O$16,ROW(Datumi)),ROW(3:3))-TabulasRindasSākums,4),\"\")","v":""},null,null,{"$f":"IFERROR(INDEX(tblPasākumi[],SMALL(IF(Datumi=R$16,ROW(Datumi)),ROW(3:3))-TabulasRindasSākums,4),\"\")","v":""},null,null,{"$f":"IFERROR(INDEX(tblPasākumi[],SMALL(IF(Datumi=U$16,ROW(Datumi)),ROW(3:3))-TabulasRindasSākums,4),\"\")","v":""}]
[null,null,{"$f":"IFERROR(INDEX(tblPasākumi[],SMALL(IF(Datumi=C$16,ROW(Datumi)),ROW(4:4))-TabulasRindasSākums,4),\"\")","v":""},null,null,{"$f":"IFERROR(INDEX(tblPasākumi[],SMALL(IF(Datumi=F$16,ROW(Datumi)),ROW(4:4))-TabulasRindasSākums,4),\"\")","v":""},null,null,{"$f":"IFERROR(INDEX(tblPasākumi[],SMALL(IF(Datumi=I$16,ROW(Datumi)),ROW(4:4))-TabulasRindasSākums,4),\"\")","v":""},null,null,{"$f":"IFERROR(INDEX(tblPasākumi[],SMALL(IF(Datumi=L$16,ROW(Datumi)),ROW(4:4))-TabulasRindasSākums,4),\"\")","v":""},null,null,{"$f":"IFERROR(INDEX(tblPasākumi[],SMALL(IF(Datumi=O$16,ROW(Datumi)),ROW(4:4))-TabulasRindasSākums,4),\"\")","v":""},null,null,{"$f":"IFERROR(INDEX(tblPasākumi[],SMALL(IF(Datumi=R$16,ROW(Datumi)),ROW(4:4))-TabulasRindasSākums,4),\"\")","v":""},null,null,{"$f":"IFERROR(INDEX(tblPasākumi[],SMALL(IF(Datumi=U$16,ROW(Datumi)),ROW(4:4))-TabulasRindasSākums,4),\"\")","v":""}]
[null,null,{"$f":"U16+1","v":"2016-07-18"},null,null,{"$f":"C21+1","v":"2016-07-19"},null,null,{"$f":"F21+1","v":"2016-07-20"},null,null,{"$f":"I21+1","v":"2016-07-21"},null,null,{"$f":"L21+1","v":"2016-07-22"},null,null,{"$f":"O21+1","v":"2016-07-23"},null,null,{"$f":"R21+1","v":"2016-07-24"}]
[null,null,{"$f":"IFERROR(INDEX(tblPasākumi[],SMALL(IF(Datumi=C$21,ROW(Datumi)),ROW(1:1))-TabulasRindasSākums,4),\"\")","v":""},null,null,{"$f":"IFERROR(INDEX(tblPasākumi[],SMALL(IF(Datumi=F$21,ROW(Datumi)),ROW(1:1))-TabulasRindasSākums,4),\"\")","v":"Stratēģiskās plānošanas seminārs"},null,null,{"$f":"IFERROR(INDEX(tblPasākumi[],SMALL(IF(Datumi=I$21,ROW(Datumi)),ROW(1:1))-TabulasRindasSākums,4),\"\")","v":"Parka tīrīšana"},null,null,{"$f":"IFERROR(INDEX(tblPasākumi[],SMALL(IF(Datumi=L$21,ROW(Datumi)),ROW(1:1))-TabulasRindasSākums,4),\"\")","v":""},null,null,{"$f":"IFERROR(INDEX(tblPasākumi[],SMALL(IF(Datumi=O$21,ROW(Datumi)),ROW(1:1))-TabulasRindasSākums,4),\"\")","v":"Pilsētas dome"},null,null,{"$f":"IFERROR(INDEX(tblPasākumi[],SMALL(IF(Datumi=R$21,ROW(Datumi)),ROW(1:1))-TabulasRindasSākums,4),\"\")","v":""},null,null,{"$f":"IFERROR(INDEX(tblPasākumi[],SMALL(IF(Datumi=U$21,ROW(Datumi)),ROW(1:1))-TabulasRindasSākums,4),\"\")","v":""}]
[null,null,{"$f":"IFERROR(INDEX(tblPasākumi[],SMALL(IF(Datumi=C$21,ROW(Datumi)),ROW(2:2))-TabulasRindasSākums,4),\"\")","v":""},null,null,{"$f":"IFERROR(INDEX(tblPasākumi[],SMALL(IF(Datumi=F$21,ROW(Datumi)),ROW(2:2))-TabulasRindasSākums,4),\"\")","v":""},null,null,{"$f":"IFERROR(INDEX(tblPasākumi[],SMALL(IF(Datumi=I$21,ROW(Datumi)),ROW(2:2))-TabulasRindasSākums,4),\"\")","v":""},null,null,{"$f":"IFERROR(INDEX(tblPasākumi[],SMALL(IF(Datumi=L$21,ROW(Datumi)),ROW(2:2))-TabulasRindasSākums,4),\"\")","v":""},null,null,{"$f":"IFERROR(INDEX(tblPasākumi[],SMALL(IF(Datumi=O$21,ROW(Datumi)),ROW(2:2))-TabulasRindasSākums,4),\"\")","v":""},null,null,{"$f":"IFERROR(INDEX(tblPasākumi[],SMALL(IF(Datumi=R$21,ROW(Datumi)),ROW(2:2))-TabulasRindasSākums,4),\"\")","v":""},null,null,{"$f":"IFERROR(INDEX(tblPasākumi[],SMALL(IF(Datumi=U$21,ROW(Datumi)),ROW(2:2))-TabulasRindasSākums,4),\"\")","v":""}]
[null,null,{"$f":"IFERROR(INDEX(tblPasākumi[],SMALL(IF(Datumi=C$21,ROW(Datumi)),ROW(3:3))-TabulasRindasSākums,4),\"\")","v":""},null,null,{"$f":"IFERROR(INDEX(tblPasākumi[],SMALL(IF(Datumi=F$21,ROW(Datumi)),ROW(3:3))-TabulasRindasSākums,4),\"\")","v":""},null,null,{"$f":"IFERROR(INDEX(tblPasākumi[],SMALL(IF(Datumi=I$21,ROW(Datumi)),ROW(3:3))-TabulasRindasSākums,4),\"\")","v":""},null,null,{"$f":"IFERROR(INDEX(tblPasākumi[],SMALL(IF(Datumi=L$21,ROW(Datumi)),ROW(3:3))-TabulasRindasSākums,4),\"\")","v":""},null,null,{"$f":"IFERROR(INDEX(tblPasākumi[],SMALL(IF(Datumi=O$21,ROW(Datumi)),ROW(3:3))-TabulasRindasSākums,4),\"\")","v":""},null,null,{"$f":"IFERROR(INDEX(tblPasākumi[],SMALL(IF(Datumi=R$21,ROW(Datumi)),ROW(3:3))-TabulasRindasSākums,4),\"\")","v":""},null,null,{"$f":"IFERROR(INDEX(tblPasākumi[],SMALL(IF(Datumi=U$21,ROW(Datumi)),ROW(3:3))-TabulasRindasSākums,4),\"\")","v":""}]
[null,null,{"$f":"IFERROR(INDEX(tblPasākumi[],SMALL(IF(Datumi=C$21,ROW(Datumi)),ROW(4:4))-TabulasRindasSākums,4),\"\")","v":""},null,null,{"$f":"IFERROR(INDEX(tblPasākumi[],SMALL(IF(Datumi=F$21,ROW(Datumi)),ROW(4:4))-TabulasRindasSākums,4),\"\")","v":""},null,null,{"$f":"IFERROR(INDEX(tblPasākumi[],SMALL(IF(Datumi=I$21,ROW(Datumi)),ROW(4:4))-TabulasRindasSākums,4),\"\")","v":""},null,null,{"$f":"IFERROR(INDEX(tblPasākumi[],SMALL(IF(Datumi=L$21,ROW(Datumi)),ROW(4:4))-TabulasRindasSākums,4),\"\")","v":""},null,null,{"$f":"IFERROR(INDEX(tblPasākumi[],SMALL(IF(Datumi=O$21,ROW(Datumi)),ROW(4:4))-TabulasRindasSākums,4),\"\")","v":""},null,null,{"$f":"IFERROR(INDEX(tblPasākumi[],SMALL(IF(Datumi=R$21,ROW(Datumi)),ROW(4:4))-TabulasRindasSākums,4),\"\")","v":""},null,null,{"$f":"IFERROR(INDEX(tblPasākumi[],SMALL(IF(Datumi=U$21,ROW(Datumi)),ROW(4:4))-TabulasRindasSākums,4),\"\")","v":""}]
[null,null,{"$f":"U21+1","v":"2016-07-25"},null,null,{"$f":"C26+1","v":"2016-07-26"},null,null,{"$f":"F26+1","v":"2016-07-27"},null,null,{"$f":"I26+1","v":"2016-07-28"},null,null,{"$f":"L26+1","v":"2016-07-29"},null,null,{"$f":"O26+1","v":"2016-07-30"},null,null,{"$f":"R26+1","v":"2016-07-31"}]
[null,null,{"$f":"IFERROR(INDEX(tblPasākumi[],SMALL(IF(Datumi=C$26,ROW(Datumi)),ROW(1:1))-TabulasRindasSākums,4),\"\")","v":""},null,null,{"$f":"IFERROR(INDEX(tblPasākumi[],SMALL(IF(Datumi=F$26,ROW(Datumi)),ROW(1:1))-TabulasRindasSākums,4),\"\")","v":"Centra pastaigu ekskursija"},null,null,{"$f":"IFERROR(INDEX(tblPasākumi[],SMALL(IF(Datumi=I$26,ROW(Datumi)),ROW(1:1))-TabulasRindasSākums,4),\"\")","v":""},null,null,{"$f":"IFERROR(INDEX(tblPasākumi[],SMALL(IF(Datumi=L$26,ROW(Datumi)),ROW(1:1))-TabulasRindasSākums,4),\"\")","v":""},null,null,{"$f":"IFERROR(INDEX(tblPasākumi[],SMALL(IF(Datumi=O$26,ROW(Datumi)),ROW(1:1))-TabulasRindasSākums,4),\"\")","v":"Pilsētas dome"},null,null,{"$f":"IFERROR(INDEX(tblPasākumi[],SMALL(IF(Datumi=R$26,ROW(Datumi)),ROW(1:1))-TabulasRindasSākums,4),\"\")","v":""},null,null,{"$f":"IFERROR(INDEX(tblPasākumi[],SMALL(IF(Datumi=U$26,ROW(Datumi)),ROW(1:1))-TabulasRindasSākums,4),\"\")","v":""}]
[null,null,{"$f":"IFERROR(INDEX(tblPasākumi[],SMALL(IF(Datumi=C$26,ROW(Datumi)),ROW(2:2))-TabulasRindasSākums,4),\"\")","v":""},null,null,{"$f":"IFERROR(INDEX(tblPasākumi[],SMALL(IF(Datumi=F$26,ROW(Datumi)),ROW(2:2))-TabulasRindasSākums,4),\"\")","v":"Krogu apgaita"},null,null,{"$f":"IFERROR(INDEX(tblPasākumi[],SMALL(IF(Datumi=I$26,ROW(Datumi)),ROW(2:2))-TabulasRindasSākums,4),\"\")","v":""},null,null,{"$f":"IFERROR(INDEX(tblPasākumi[],SMALL(IF(Datumi=L$26,ROW(Datumi)),ROW(2:2))-TabulasRindasSākums,4),\"\")","v":""},null,null,{"$f":"IFERROR(INDEX(tblPasākumi[],SMALL(IF(Datumi=O$26,ROW(Datumi)),ROW(2:2))-TabulasRindasSākums,4),\"\")","v":""},null,null,{"$f":"IFERROR(INDEX(tblPasākumi[],SMALL(IF(Datumi=R$26,ROW(Datumi)),ROW(2:2))-TabulasRindasSākums,4),\"\")","v":""},null,null,{"$f":"IFERROR(INDEX(tblPasākumi[],SMALL(IF(Datumi=U$26,ROW(Datumi)),ROW(2:2))-TabulasRindasSākums,4),\"\")","v":""}]
[null,null,{"$f":"IFERROR(INDEX(tblPasākumi[],SMALL(IF(Datumi=C$26,ROW(Datumi)),ROW(3:3))-TabulasRindasSākums,4),\"\")","v":""},null,null,{"$f":"IFERROR(INDEX(tblPasākumi[],SMALL(IF(Datumi=F$26,ROW(Datumi)),ROW(3:3))-TabulasRindasSākums,4),\"\")","v":""},null,null,{"$f":"IFERROR(INDEX(tblPasākumi[],SMALL(IF(Datumi=I$26,ROW(Datumi)),ROW(3:3))-TabulasRindasSākums,4),\"\")","v":""},null,null,{"$f":"IFERROR(INDEX(tblPasākumi[],SMALL(IF(Datumi=L$26,ROW(Datumi)),ROW(3:3))-TabulasRindasSākums,4),\"\")","v":""},null,null,{"$f":"IFERROR(INDEX(tblPasākumi[],SMALL(IF(Datumi=O$26,ROW(Datumi)),ROW(3:3))-TabulasRindasSākums,4),\"\")","v":""},null,null,{"$f":"IFERROR(INDEX(tblPasākumi[],SMALL(IF(Datumi=R$26,ROW(Datumi)),ROW(3:3))-TabulasRindasSākums,4),\"\")","v":""},null,null,{"$f":"IFERROR(INDEX(tblPasākumi[],SMALL(IF(Datumi=U$26,ROW(Datumi)),ROW(3:3))-TabulasRindasSākums,4),\"\")","v":""}]
[null,null,{"$f":"IFERROR(INDEX(tblPasākumi[],SMALL(IF(Datumi=C$26,ROW(Datumi)),ROW(4:4))-TabulasRindasSākums,4),\"\")","v":""},null,null,{"$f":"IFERROR(INDEX(tblPasākumi[],SMALL(IF(Datumi=F$26,ROW(Datumi)),ROW(4:4))-TabulasRindasSākums,4),\"\")","v":""},null,null,{"$f":"IFERROR(INDEX(tblPasākumi[],SMALL(IF(Datumi=I$26,ROW(Datumi)),ROW(4:4))-TabulasRindasSākums,4),\"\")","v":""},null,null,{"$f":"IFERROR(INDEX(tblPasākumi[],SMALL(IF(Datumi=L$26,ROW(Datumi)),ROW(4:4))-TabulasRindasSākums,4),\"\")","v":""},null,null,{"$f":"IFERROR(INDEX(tblPasākumi[],SMALL(IF(Datumi=O$26,ROW(Datumi)),ROW(4:4))-TabulasRindasSākums,4),\"\")","v":""},null,null,{"$f":"IFERROR(INDEX(tblPasākumi[],SMALL(IF(Datumi=R$26,ROW(Datumi)),ROW(4:4))-TabulasRindasSākums,4),\"\")","v":""},null,null,{"$f":"IFERROR(INDEX(tblPasākumi[],SMALL(IF(Datumi=U$26,ROW(Datumi)),ROW(4:4))-TabulasRindasSākums,4),\"\")","v":""}]
[null,null,{"$f":"U26+1","v":"2016-08-01"},null,null,{"$f":"C31+1","v":"2016-08-02"},null,null,"PIEZĪMES."]
[null,null,{"$f":"IFERROR(INDEX(tblPasākumi[],SMALL(IF(Datumi=C$31,ROW(Datumi)),ROW(1:1))-TabulasRindasSākums,4),\"\")","v":""},null,null,{"$f":"IFERROR(INDEX(tblPasākumi[],SMALL(IF(Datumi=F$31,ROW(Datumi)),ROW(1:1))-TabulasRindasSākums,4),\"\")","v":""}]
[null,null,{"$f":"IFERROR(INDEX(tblPasākumi[],SMALL(IF(Datumi=C$31,ROW(Datumi)),ROW(2:2))-TabulasRindasSākums,4),\"\")","v":""},null,null,{"$f":"IFERROR(INDEX(tblPasākumi[],SMALL(IF(Datumi=F$31,ROW(Datumi)),ROW(2:2))-TabulasRindasSākums,4),\"\")","v":""}]
[null,null,{"$f":"IFERROR(INDEX(tblPasākumi[],SMALL(IF(Datumi=C$31,ROW(Datumi)),ROW(3:3))-TabulasRindasSākums,4),\"\")","v":""},null,null,{"$f":"IFERROR(INDEX(tblPasākumi[],SMALL(IF(Datumi=F$31,ROW(Datumi)),ROW(3:3))-TabulasRindasSākums,4),\"\")","v":""}]
[null,null,{"$f":"IFERROR(INDEX(tblPasākumi[],SMALL(IF(Datumi=C$31,ROW(Datumi)),ROW(4:4))-TabulasRindasSākums,4),\"\")","v":""},null,null,{"$f":"IFERROR(INDEX(tblPasākumi[],SMALL(IF(Datumi=F$31,ROW(Datumi)),ROW(4:4))-TabulasRindasSākums,4),\"\")","v":""}]

{"sheet":"DRUKAS VERSIJA","index":2,"n_rows":35,"n_cols":21,"rows_kept":35,"merged":[[1,5,1,11],[30,8,34,20]]}
[]
[null,null,{"$f":"SkatītGadu","v":2016},null,null,{"$f":"SkatītMēnesi","v":"JŪLIJS"}]
[]
[null,null,"PR",null,null,"OT",null,null,"TR",null,null,"CE",null,null,"PK",null,null,"SE",null,null,"SV"]
[]
[null,null,{"$f":"KALENDĀRS!C6","v":"2016-06-27"},{"$f":"KALENDĀRS!D6","v":0},{"$f":"KALENDĀRS!E6","v":0},{"$f":"KALENDĀRS!F6","v":"2016-06-28"},{"$f":"KALENDĀRS!G6","v":0},{"$f":"KALENDĀRS!H6","v":0},{"$f":"KALENDĀRS!I6","v":"2016-06-29"},{"$f":"KALENDĀRS!J6","v":0},{"$f":"KALENDĀRS!K6","v":0},{"$f":"KALENDĀRS!L6","v":"2016-06-30"},{"$f":"KALENDĀRS!M6","v":0},{"$f":"KALENDĀRS!N6","v":0},{"$f":"KALENDĀRS!O6","v":"2016-07-01"},{"$f":"KALENDĀRS!P6","v":0},{"$f":"KALENDĀRS!Q6","v":0},{"$f":"KALENDĀRS!R6","v":"2016-07-02"},{"$f":"KALENDĀRS!S6","v":0},{"$f":"KALENDĀRS!T6","v":0},{"$f":"KALENDĀRS!U6","v":"2016-07-03"}]
[null,null,{"$f":"KALENDĀRS!C7","v":""},{"$f":"KALENDĀRS!D7","v":0},{"$f":"KALENDĀRS!E7","v":0},{"$f":"KALENDĀRS!F7","v":""},{"$f":"KALENDĀRS!G7","v":0},{"$f":"KALENDĀRS!H7","v":0},{"$f":"KALENDĀRS!I7","v":""},{"$f":"KALENDĀRS!J7","v":0},{"$f":"KALENDĀRS!K7","v":0},{"$f":"KALENDĀRS!L7","v":""},{"$f":"KALENDĀRS!M7","v":0},{"$f":"KALENDĀRS!N7","v":0},{"$f":"KALENDĀRS!O7","v":"Kopienas dārzs"},{"$f":"KALENDĀRS!P7","v":0},{"$f":"KALENDĀRS!Q7","v":0},{"$f":"KALENDĀRS!R7","v":"Kopienas dārzs"},{"$f":"KALENDĀRS!S7","v":0},{"$f":"KALENDĀRS!T7","v":0},{"$f":"KALENDĀRS!U7","v":"Filmu vakars parkā"}]
[null,null,{"$f":"KALENDĀRS!C8","v":""},{"$f":"KALENDĀRS!D8","v":"00:00:00"},{"$f":"KALENDĀRS!E8","v":"00:00:00"},{"$f":"KALENDĀRS!F8","v":""},{"$f":"KALENDĀRS!G8","v":"00:00:00"},{"$f":"KALENDĀRS!H8","v":"00:00:00"},{"$f":"KALENDĀRS!I8","v":""},{"$f":"KALENDĀRS!J8","v":"00:00:00"},{"$f":"KALENDĀRS!K8","v":"00:00:00"},{"$f":"KALENDĀRS!L8","v":""},{"$f":"KALENDĀRS!M8","v":"00:00:00"},{"$f":"KALENDĀRS!N8","v":"00:00:00"},{"$f":"KALENDĀRS!O8","v":"Pilsētas dome"},{"$f":"KALENDĀRS!P8","v":"00:00:00"},{"$f":"KALENDĀRS!Q8","v":"00:00:00"},{"$f":"KALENDĀRS!R8","v":""},{"$f":"KALENDĀRS!S8","v":"00:00:00"},{"$f":"KALENDĀRS!T8","v":"00:00:00"},{"$f":"KALENDĀRS!U8","v":""}]
[null,null,{"$f":"KALENDĀRS!C9","v":""},{"$f":"KALENDĀRS!D9","v":0},{"$f":"KALENDĀRS!E9","v":0},{"$f":"KALENDĀRS!F9","v":""},{"$f":"KALENDĀRS!G9","v":0},{"$f":"KALENDĀRS!H9","v":0},{"$f":"KALENDĀRS!I9","v":""},{"$f":"KALENDĀRS!J9","v":0},{"$f":"KALENDĀRS!K9","v":0},{"$f":"KALENDĀRS!L9","v":""},{"$f":"KALENDĀRS!M9","v":0},{"$f":"KALENDĀRS!N9","v":0},{"$f":"KALENDĀRS!O9","v":""},{"$f":"KALENDĀRS!P9","v":0},{"$f":"KALENDĀRS!Q9","v":0},{"$f":"KALENDĀRS!R9","v":""},{"$f":"KALENDĀRS!S9","v":0},{"$f":"KALENDĀRS!T9","v":0},{"$f":"KALENDĀRS!U9","v":""}]
[null,null,{"$f":"KALENDĀRS!C10","v":""},{"$f":"KALENDĀRS!D10","v":0},{"$f":"KALENDĀRS!E10","v":0},{"$f":"KALENDĀRS!F10","v":""},{"$f":"KALENDĀRS!G10","v":0},{"$f":"KALENDĀRS!H10","v":0},{"$f":"KALENDĀRS!I10","v":""},{"$f":"KALENDĀRS!J10","v":0},{"$f":"KALENDĀRS!K10","v":0},{"$f":"KALENDĀRS!L10","v":""},{"$f":"KALENDĀRS!M10","v":0},{"$f":"KALENDĀRS!N10","v":0},{"$f":"KALENDĀRS!O10","v":""},{"$f":"KALENDĀRS!P10","v":0},{"$f":"KALENDĀRS!Q10","v":0},{"$f":"KALENDĀRS!R10","v":""},{"$f":"KALENDĀRS!S10","v":0},{"$f":"KALENDĀRS!T10","v":0},{"$f":"KALENDĀRS!U10","v":""}]
[null,null,{"$f":"KALENDĀRS!C11","v":"2016-07-04"},{"$f":"KALENDĀRS!D11","v":0},{"$f":"KALENDĀRS!E11","v":0},{"$f":"KALENDĀRS!F11","v":"2016-07-05"},{"$f":"KALENDĀRS!G11","v":0},{"$f":"KALENDĀRS!H11","v":0},{"$f":"KALENDĀRS!I11","v":"2016-07-06"},{"$f":"KALENDĀRS!J11","v":0},{"$f":"KALENDĀRS!K11","v":0},{"$f":"KALENDĀRS!L11","v":"2016-07-07"},{"$f":"KALENDĀRS!M11","v":0},{"$f":"KALENDĀRS!N11","v":0},{"$f":"KALENDĀRS!O11","v":"2016-07-08"},{"$f":"KALENDĀRS!P11","v":0},{"$f":"KALENDĀRS!Q11","v":0},{"$f":"KALENDĀRS!R11","v":"2016-07-09"},{"$f":"KALENDĀRS!S11","v":0},{"$f":"KALENDĀRS!T11","v":0},{"$f":"KALENDĀRS!U11","v":"2016-07-10"}]
[null,null,{"$f":"KALENDĀRS!C12","v":""},{"$f":"KALENDĀRS!D12","v":0},{"$f":"KALENDĀRS!E12","v":0},{"$f":"KALENDĀRS!F12","v":""},{"$f":"KALENDĀRS!G12","v":0},{"$f":"KALENDĀRS!H12","v":0},{"$f":"KALENDĀRS!I12","v":""},{"$f":"KALENDĀRS!J12","v":0},{"$f":"KALENDĀRS!K12","v":0},{"$f":"KALENDĀRS!L12","v":""},{"$f":"KALENDĀRS!M12","v":0},{"$f":"KALENDĀRS!N12","v":0},{"$f":"KALENDĀRS!O12","v":"Pilsētas dome"},{"$f":"KALENDĀRS!P12","v":0},{"$f":"KALENDĀRS!Q12","v":0},{"$f":"KALENDĀRS!R12","v":""},{"$f":"KALENDĀRS!S12","v":0},{"$f":"KALENDĀRS!T12","v":0},{"$f":"KALENDĀRS!U12","v":""}]
[null,null,{"$f":"KALENDĀRS!C13","v":""},{"$f":"KALENDĀRS!D13","v":0},{"$f":"KALENDĀRS!E13","v":0},{"$f":"KALENDĀRS!F13","v":""},{"$f":"KALENDĀRS!G13","v":0},{"$f":"KALENDĀRS!H13","v":0},{"$f":"KALENDĀRS!I13","v":""},{"$f":"KALENDĀRS!J13","v":0},{"$f":"KALENDĀRS!K13","v":0},{"$f":"KALENDĀRS!L13","v":""},{"$f":"KALENDĀRS!M13","v":0},{"$f":"KALENDĀRS!N13","v":0},{"$f":"KALENDĀRS!O13","v":""},{"$f":"KALENDĀRS!P13","v":0},{"$f":"KALENDĀRS!Q13","v":0},{"$f":"KALENDĀRS!R13","v":""},{"$f":"KALENDĀRS!S13","v":0},{"$f":"KALENDĀRS!T13","v":0},{"$f":"KALENDĀRS!U13","v":""}]
[null,null,{"$f":"KALENDĀRS!C14","v":""},{"$f":"KALENDĀRS!D14","v":0},{"$f":"KALENDĀRS!E14","v":0},{"$f":"KALENDĀRS!F14","v":""},{"$f":"KALENDĀRS!G14","v":0},{"$f":"KALENDĀRS!H14","v":0},{"$f":"KALENDĀRS!I14","v":""},{"$f":"KALENDĀRS!J14","v":0},{"$f":"KALENDĀRS!K14","v":0},{"$f":"KALENDĀRS!L14","v":""},{"$f":"KALENDĀRS!M14","v":0},{"$f":"KALENDĀRS!N14","v":0},{"$f":"KALENDĀRS!O14","v":""},{"$f":"KALENDĀRS!P14","v":0},{"$f":"KALENDĀRS!Q14","v":0},{"$f":"KALENDĀRS!R14","v":""},{"$f":"KALENDĀRS!S14","v":0},{"$f":"KALENDĀRS!T14","v":0},{"$f":"KALENDĀRS!U14","v":""}]
[null,null,{"$f":"KALENDĀRS!C15","v":""},{"$f":"KALENDĀRS!D15","v":0},{"$f":"KALENDĀRS!E15","v":0},{"$f":"KALENDĀRS!F15","v":""},{"$f":"KALENDĀRS!G15","v":0},{"$f":"KALENDĀRS!H15","v":0},{"$f":"KALENDĀRS!I15","v":""},{"$f":"KALENDĀRS!J15","v":0},{"$f":"KALENDĀRS!K15","v":0},{"$f":"KALENDĀRS!L15","v":""},{"$f":"KALENDĀRS!M15","v":0},{"$f":"KALENDĀRS!N15","v":0},{"$f":"KALENDĀRS!O15","v":""},{"$f":"KALENDĀRS!P15","v":0},{"$f":"KALENDĀRS!Q15","v":0},{"$f":"KALENDĀRS!R15","v":""},{"$f":"KALENDĀRS!S15","v":0},{"$f":"KALENDĀRS!T15","v":0},{"$f":"KALENDĀRS!U15","v":""}]
[null,null,{"$f":"KALENDĀRS!C16","v":"2016-07-11"},{"$f":"KALENDĀRS!D16","v":0},{"$f":"KALENDĀRS!E16","v":0},{"$f":"KALENDĀRS!F16","v":"2016-07-12"},{"$f":"KALENDĀRS!G16","v":0},{"$f":"KALENDĀRS!H16","v":0},{"$f":"KALENDĀRS!I16","v":"2016-07-13"},{"$f":"KALENDĀRS!J16","v":0},{"$f":"KALENDĀRS!K16","v":0},{"$f":"KALENDĀRS!L16","v":"2016-07-14"},{"$f":"KALENDĀRS!M16","v":0},{"$f":"KALENDĀRS!N16","v":0},{"$f":"KALENDĀRS!O16","v":"2016-07-15"},{"$f":"KALENDĀRS!P16","v":0},{"$f":"KALENDĀRS!Q16","v":0},{"$f":"KALENDĀRS!R16","v":"2016-07-16"},{"$f":"KALENDĀRS!S16","v":0},{"$f":"KALENDĀRS!T16","v":0},{"$f":"KALENDĀRS!U16","v":"2016-07-17"}]
[null,null,{"$f":"KALENDĀRS!C17","v":"Tirdzniecības kamera Brokastis"},{"$f":"KALENDĀRS!D17","v":0},{"$f":"KALENDĀRS!E17","v":0},{"$f":"KALENDĀRS!F17","v":"Senlietu izstāde"},{"$f":"KALENDĀRS!G17","v":0},{"$f":"KALENDĀRS!H17","v":0},{"$f":"KALENDĀRS!I17","v":""},{"$f":"KALENDĀRS!J17","v":0},{"$f":"KALENDĀRS!K17","v":0},{"$f":"KALENDĀRS!L17","v":"Kopienas darbnīca"},{"$f":"KALENDĀRS!M17","v":0},{"$f":"KALENDĀRS!N17","v":0},{"$f":"KALENDĀRS!O17","v":"Pilsētas dome"},{"$f":"KALENDĀRS!P17","v":0},{"$f":"KALENDĀRS!Q17","v":0},{"$f":"KALENDĀRS!R17","v":""},{"$f":"KALENDĀRS!S17","v":0},{"$f":"KALENDĀRS!T17","v":0},{"$f":"KALENDĀRS!U17","v":""}]
[null,null,{"$f":"KALENDĀRS!C18","v":""},{"$f":"KALENDĀRS!D18","v":0},{"$f":"KALENDĀRS!E18","v":0},{"$f":"KALENDĀRS!F18","v":""},{"$f":"KALENDĀRS!G18","v":0},{"$f":"KALENDĀRS!H18","v":0},{"$f":"KALENDĀRS!I18","v":""},{"$f":"KALENDĀRS!J18","v":0},{"$f":"KALENDĀRS!K18","v":0},{"$f":"KALENDĀRS!L18","v":""},{"$f":"KALENDĀRS!M18","v":0},{"$f":"KALENDĀRS!N18","v":0},{"$f":"KALENDĀRS!O18","v":""},{"$f":"KALENDĀRS!P18","v":0},{"$f":"KALENDĀRS!Q18","v":0},{"$f":"KALENDĀRS!R18","v":""},{"$f":"KALENDĀRS!S18","v":0},{"$f":"KALENDĀRS!T18","v":0},{"$f":"KALENDĀRS!U18","v":""}]
[null,null,{"$f":"KALENDĀRS!C19","v":""},{"$f":"KALENDĀRS!D19","v":0},{"$f":"KALENDĀRS!E19","v":0},{"$f":"KALENDĀRS!F19","v":""},{"$f":"KALENDĀRS!G19","v":0},{"$f":"KALENDĀRS!H19","v":0},{"$f":"KALENDĀRS!I19","v":""},{"$f":"KALENDĀRS!J19","v":0},{"$f":"KALENDĀRS!K19","v":0},{"$f":"KALENDĀRS!L19","v":""},{"$f":"KALENDĀRS!M19","v":0},{"$f":"KALENDĀRS!N19","v":0},{"$f":"KALENDĀRS!O19","v":""},{"$f":"KALENDĀRS!P19","v":0},{"$f":"KALENDĀRS!Q19","v":0},{"$f":"KALENDĀRS!R19","v":""},{"$f":"KALENDĀRS!S19","v":0},{"$f":"KALENDĀRS!T19","v":0},{"$f":"KALENDĀRS!U19","v":""}]
[null,null,{"$f":"KALENDĀRS!C20","v":""},{"$f":"KALENDĀRS!D20","v":0},{"$f":"KALENDĀRS!E20","v":0},{"$f":"KALENDĀRS!F20","v":""},{"$f":"KALENDĀRS!G20","v":0},{"$f":"KALENDĀRS!H20","v":0},{"$f":"KALENDĀRS!I20","v":""},{"$f":"KALENDĀRS!J20","v":0},{"$f":"KALENDĀRS!K20","v":0},{"$f":"KALENDĀRS!L20","v":""},{"$f":"KALENDĀRS!M20","v":0},{"$f":"KALENDĀRS!N20","v":0},{"$f":"KALENDĀRS!O20","v":""},{"$f":"KALENDĀRS!P20","v":0},{"$f":"KALENDĀRS!Q20","v":0},{"$f":"KALENDĀRS!R20","v":""},{"$f":"KALENDĀRS!S20","v":0},{"$f":"KALENDĀRS!T20","v":0},{"$f":"KALENDĀRS!U20","v":""}]
[null,null,{"$f":"KALENDĀRS!C21","v":"2016-07-18"},{"$f":"KALENDĀRS!D21","v":0},{"$f":"KALENDĀRS!E21","v":0},{"$f":"KALENDĀRS!F21","v":"2016-07-19"},{"$f":"KALENDĀRS!G21","v":0},{"$f":"KALENDĀRS!H21","v":0},{"$f":"KALENDĀRS!I21","v":"2016-07-20"},{"$f":"KALENDĀRS!J21","v":0},{"$f":"KALENDĀRS!K21","v":0},{"$f":"KALENDĀRS!L21","v":"2016-07-21"},{"$f":"KALENDĀRS!M21","v":0},{"$f":"KALENDĀRS!N21","v":0},{"$f":"KALENDĀRS!O21","v":"2016-07-22"},{"$f":"KALENDĀRS!P21","v":0},{"$f":"KALENDĀRS!Q21","v":0},{"$f":"KALENDĀRS!R21","v":"2016-07-23"},{"$f":"KALENDĀRS!S21","v":0},{"$f":"KALENDĀRS!T21","v":0},{"$f":"KALENDĀRS!U21","v":"2016-07-24"}]
[null,null,{"$f":"KALENDĀRS!C22","v":""},{"$f":"KALENDĀRS!D22","v":0},{"$f":"KALENDĀRS!E22","v":0},{"$f":"KALENDĀRS!F22","v":"Stratēģiskās plānošanas seminārs"},{"$f":"KALENDĀRS!G22","v":0},{"$f":"KALENDĀRS!H22","v":0},{"$f":"KALENDĀRS!I22","v":"Parka tīrīšana"},{"$f":"KALENDĀRS!J22","v":0},{"$f":"KALENDĀRS!K22","v":0},{"$f":"KALENDĀRS!L22","v":""},{"$f":"KALENDĀRS!M22","v":0},{"$f":"KALENDĀRS!N22","v":0},{"$f":"KALENDĀRS!O22","v":"Pilsētas dome"},{"$f":"KALENDĀRS!P22","v":0},{"$f":"KALENDĀRS!Q22","v":0},{"$f":"KALENDĀRS!R22","v":""},{"$f":"KALENDĀRS!S22","v":0},{"$f":"KALENDĀRS!T22","v":0},{"$f":"KALENDĀRS!U22","v":""}]
[null,null,{"$f":"KALENDĀRS!C23","v":""},{"$f":"KALENDĀRS!D23","v":0},{"$f":"KALENDĀRS!E23","v":0},{"$f":"KALENDĀRS!F23","v":""},{"$f":"KALENDĀRS!G23","v":0},{"$f":"KALENDĀRS!H23","v":0},{"$f":"KALENDĀRS!I23","v":""},{"$f":"KALENDĀRS!J23","v":0},{"$f":"KALENDĀRS!K23","v":0},{"$f":"KALENDĀRS!L23","v":""},{"$f":"KALENDĀRS!M23","v":0},{"$f":"KALENDĀRS!N23","v":0},{"$f":"KALENDĀRS!O23","v":""},{"$f":"KALENDĀRS!P23","v":0},{"$f":"KALENDĀRS!Q23","v":0},{"$f":"KALENDĀRS!R23","v":""},{"$f":"KALENDĀRS!S23","v":0},{"$f":"KALENDĀRS!T23","v":0},{"$f":"KALENDĀRS!U23","v":""}]
[null,null,{"$f":"KALENDĀRS!C24","v":""},{"$f":"KALENDĀRS!D24","v":0},{"$f":"KALENDĀRS!E24","v":0},{"$f":"KALENDĀRS!F24","v":""},{"$f":"KALENDĀRS!G24","v":0},{"$f":"KALENDĀRS!H24","v":0},{"$f":"KALENDĀRS!I24","v":""},{"$f":"KALENDĀRS!J24","v":0},{"$f":"KALENDĀRS!K24","v":0},{"$f":"KALENDĀRS!L24","v":""},{"$f":"KALENDĀRS!M24","v":0},{"$f":"KALENDĀRS!N24","v":0},{"$f":"KALENDĀRS!O24","v":""},{"$f":"KALENDĀRS!P24","v":0},{"$f":"KALENDĀRS!Q24","v":0},{"$f":"KALENDĀRS!R24","v":""},{"$f":"KALENDĀRS!S24","v":0},{"$f":"KALENDĀRS!T24","v":0},{"$f":"KALENDĀRS!U24","v":""}]
[null,null,{"$f":"KALENDĀRS!C25","v":""},{"$f":"KALENDĀRS!D25","v":0},{"$f":"KALENDĀRS!E25","v":0},{"$f":"KALENDĀRS!F25","v":""},{"$f":"KALENDĀRS!G25","v":0},{"$f":"KALENDĀRS!H25","v":0},{"$f":"KALENDĀRS!I25","v":""},{"$f":"KALENDĀRS!J25","v":0},{"$f":"KALENDĀRS!K25","v":0},{"$f":"KALENDĀRS!L25","v":""},{"$f":"KALENDĀRS!M25","v":0},{"$f":"KALENDĀRS!N25","v":0},{"$f":"KALENDĀRS!O25","v":""},{"$f":"KALENDĀRS!P25","v":0},{"$f":"KALENDĀRS!Q25","v":0},{"$f":"KALENDĀRS!R25","v":""},{"$f":"KALENDĀRS!S25","v":0},{"$f":"KALENDĀRS!T25","v":0},{"$f":"KALENDĀRS!U25","v":""}]
[null,null,{"$f":"KALENDĀRS!C26","v":"2016-07-25"},{"$f":"KALENDĀRS!D26","v":0},{"$f":"KALENDĀRS!E26","v":0},{"$f":"KALENDĀRS!F26","v":"2016-07-26"},{"$f":"KALENDĀRS!G26","v":0},{"$f":"KALENDĀRS!H26","v":0},{"$f":"KALENDĀRS!I26","v":"2016-07-27"},{"$f":"KALENDĀRS!J26","v":0},{"$f":"KALENDĀRS!K26","v":0},{"$f":"KALENDĀRS!L26","v":"2016-07-28"},{"$f":"KALENDĀRS!M26","v":0},{"$f":"KALENDĀRS!N26","v":0},{"$f":"KALENDĀRS!O26","v":"2016-07-29"},{"$f":"KALENDĀRS!P26","v":0},{"$f":"KALENDĀRS!Q26","v":0},{"$f":"KALENDĀRS!R26","v":"2016-07-30"},{"$f":"KALENDĀRS!S26","v":0},{"$f":"KALENDĀRS!T26","v":0},{"$f":"KALENDĀRS!U26","v":"2016-07-31"}]
[null,null,{"$f":"KALENDĀRS!C27","v":""},{"$f":"KALENDĀRS!D27","v":0},{"$f":"KALENDĀRS!E27","v":0},{"$f":"KALENDĀRS!F27","v":"Centra pastaigu ekskursija"},{"$f":"KALENDĀRS!G27","v":0},{"$f":"KALENDĀRS!H27","v":0},{"$f":"KALENDĀRS!I27","v":""},{"$f":"KALENDĀRS!J27","v":0},{"$f":"KALENDĀRS!K27","v":0},{"$f":"KALENDĀRS!L27","v":""},{"$f":"KALENDĀRS!M27","v":0},{"$f":"KALENDĀRS!N27","v":0},{"$f":"KALENDĀRS!O27","v":"Pilsētas dome"},{"$f":"KALENDĀRS!P27","v":0},{"$f":"KALENDĀRS!Q27","v":0},{"$f":"KALENDĀRS!R27","v":""},{"$f":"KALENDĀRS!S27","v":0},{"$f":"KALENDĀRS!T27","v":0},{"$f":"KALENDĀRS!U27","v":""}]
[null,null,{"$f":"KALENDĀRS!C28","v":""},{"$f":"KALENDĀRS!D28","v":0},{"$f":"KALENDĀRS!E28","v":0},{"$f":"KALENDĀRS!F28","v":"Krogu apgaita"},{"$f":"KALENDĀRS!G28","v":0},{"$f":"KALENDĀRS!H28","v":0},{"$f":"KALENDĀRS!I28","v":""},{"$f":"KALENDĀRS!J28","v":0},{"$f":"KALENDĀRS!K28","v":0},{"$f":"KALENDĀRS!L28","v":""},{"$f":"KALENDĀRS!M28","v":0},{"$f":"KALENDĀRS!N28","v":0},{"$f":"KALENDĀRS!O28","v":""},{"$f":"KALENDĀRS!P28","v":0},{"$f":"KALENDĀRS!Q28","v":0},{"$f":"KALENDĀRS!R28","v":""},{"$f":"KALENDĀRS!S28","v":0},{"$f":"KALENDĀRS!T28","v":0},{"$f":"KALENDĀRS!U28","v":""}]
[null,null,{"$f":"KALENDĀRS!C29","v":""},{"$f":"KALENDĀRS!D29","v":0},{"$f":"KALENDĀRS!E29","v":0},{"$f":"KALENDĀRS!F29","v":""},{"$f":"KALENDĀRS!G29","v":0},{"$f":"KALENDĀRS!H29","v":0},{"$f":"KALENDĀRS!I29","v":""},{"$f":"KALENDĀRS!J29","v":0},{"$f":"KALENDĀRS!K29","v":0},{"$f":"KALENDĀRS!L29","v":""},{"$f":"KALENDĀRS!M29","v":0},{"$f":"KALENDĀRS!N29","v":0},{"$f":"KALENDĀRS!O29","v":""},{"$f":"KALENDĀRS!P29","v":0},{"$f":"KALENDĀRS!Q29","v":0},{"$f":"KALENDĀRS!R29","v":""},{"$f":"KALENDĀRS!S29","v":0},{"$f":"KALENDĀRS!T29","v":0},{"$f":"KALENDĀRS!U29","v":""}]
[null,null,{"$f":"KALENDĀRS!C30","v":""},{"$f":"KALENDĀRS!D30","v":0},{"$f":"KALENDĀRS!E30","v":0},{"$f":"KALENDĀRS!F30","v":""},{"$f":"KALENDĀRS!G30","v":0},{"$f":"KALENDĀRS!H30","v":0},{"$f":"KALENDĀRS!I30","v":""},{"$f":"KALENDĀRS!J30","v":0},{"$f":"KALENDĀRS!K30","v":0},{"$f":"KALENDĀRS!L30","v":""},{"$f":"KALENDĀRS!M30","v":0},{"$f":"KALENDĀRS!N30","v":0},{"$f":"KALENDĀRS!O30","v":""},{"$f":"KALENDĀRS!P30","v":0},{"$f":"KALENDĀRS!Q30","v":0},{"$f":"KALENDĀRS!R30","v":""},{"$f":"KALENDĀRS!S30","v":0},{"$f":"KALENDĀRS!T30","v":0},{"$f":"KALENDĀRS!U30","v":""}]
[null,null,{"$f":"KALENDĀRS!C31","v":"2016-08-01"},{"$f":"KALENDĀRS!D31","v":0},{"$f":"KALENDĀRS!E31","v":0},{"$f":"KALENDĀRS!F31","v":"2016-08-02"},null,null,{"$f":"KALENDĀRS!I31","v":"PIEZĪMES."}]
[null,null,{"$f":"KALENDĀRS!C32","v":""},{"$f":"KALENDĀRS!D32","v":0},{"$f":"KALENDĀRS!E32","v":0},{"$f":"KALENDĀRS!F32","v":""}]
[null,null,{"$f":"KALENDĀRS!C33","v":""},{"$f":"KALENDĀRS!D33","v":0},{"$f":"KALENDĀRS!E33","v":0},{"$f":"KALENDĀRS!F33","v":""}]
[null,null,{"$f":"KALENDĀRS!C34","v":""},{"$f":"KALENDĀRS!D34","v":0},{"$f":"KALENDĀRS!E34","v":0},{"$f":"KALENDĀRS!F34","v":""}]
[null,null,{"$f":"KALENDĀRS!C35","v":""},{"$f":"KALENDĀRS!D35","v":0},{"$f":"KALENDĀRS!E35","v":0},{"$f":"KALENDĀRS!F35","v":""}]

{"sheet":"ADMINISTRATORS","index":3,"n_rows":14,"n_cols":3,"rows_kept":14,"hidden":true}
[]
[null,"MĒNESIS","NUMURS"]
[null,"JANVĀRIS",1]
[null,"FEBRUĀRIS",2]
[null,"MARTS",3]
[null,"APRĪLIS",4]
[null,"MAIJS",5]
[null,"JŪNIJS",6]
[null,"JŪLIJS",7]
[null,"AUGUSTS",8]
[null,"SEPTEMBRIS",9]
[null,"OKTOBRIS",10]
[null,"NOVEMBRIS",11]
[null,"DECEMBRIS",12]